[Event "Titled Tuesday Blitz April 18 Early 2023"]
[White "Sowul, Bartosz"]
[Black "Svane, Rasmus"]
[WhiteFideId "1137590"]
[BlackFideId "4657101"]
[WhiteElo "2188"]
[BlackElo "2597"]
[Result "0-1"]
[Round "03"]
[TimeControl "180+2"]
[Date "2023.04.18"]
[WhiteClock "0:00:26"]
[BlackClock "0:00:56"]

1. e4 {[%clk 0:03:00]}  c6 {[%clk 0:02:57]} 2. d4 {[%clk 0:03:00]}  d5 {[%clk 0:02:58]} 3. e5 {[%clk 0:03:01]}  Bf5 {[%clk 0:02:57]} 4. h4 {[%clk 0:03:01]}  h5 {[%clk 0:02:57]} 5. Bd3 {[%clk 0:03:01]}  Bxd3 {[%clk 0:02:58]} 6. Qxd3 {[%clk 0:03:02]}  Qa5+ {[%clk 0:02:58]} 7. Nd2 {[%clk 0:03:02]}  e6 {[%clk 0:02:58]} 8. Nf3 {[%clk 0:03:02]}  Nh6 {[%clk 0:02:58]} 9. O-O {[%clk 0:03:00]}  Nf5 {[%clk 0:02:58]} 10. Nb3 {[%clk 0:02:59]}  Qb5 {[%clk 0:02:58]} 11. Qd1 {[%clk 0:02:58]}  c5 {[%clk 0:02:59]} 12. dxc5 {[%clk 0:02:52]}  Bxc5 {[%clk 0:02:58]} 13. Nxc5 {[%clk 0:02:47]}  Qxc5 {[%clk 0:02:58]} 14. Bg5 {[%clk 0:02:45]}  Nc6 {[%clk 0:02:58]} 15. c3 {[%clk 0:02:41]}  Rc8 {[%clk 0:02:37]} 16. Re1 {[%clk 0:02:39]}  Kd7 {[%clk 0:02:25]} 17. Qb3 {[%clk 0:02:31]}  Kc7 {[%clk 0:02:24]} 18. Be3 {[%clk 0:02:04]}  Qc4 {[%clk 0:02:01]} 19. Qa3 {[%clk 0:01:54]}  Kb8 {[%clk 0:02:00]} 20. Rad1 {[%clk 0:01:51]}  Nxh4 {[%clk 0:01:57]} 21. Nxh4 {[%clk 0:01:42]}  Qxh4 {[%clk 0:01:58]} 22. Rd4 {[%clk 0:01:42]}  Nxd4 {[%clk 0:01:43]} 23. Bxd4 {[%clk 0:01:41]}  b6 {[%clk 0:01:44]} 24. Qa6 {[%clk 0:01:14]}  Qe7 {[%clk 0:01:40]} 25. a4 {[%clk 0:01:11]}  Qb7 {[%clk 0:01:37]} 26. Qd3 {[%clk 0:01:10]}  a6 {[%clk 0:01:34]} 27. b4 {[%clk 0:01:10]}  Rc4 {[%clk 0:01:34]} 28. a5 {[%clk 0:01:07]}  b5 {[%clk 0:01:34]} 29. Re3 {[%clk 0:01:03]}  Rhc8 {[%clk 0:01:33]} 30. Qh7 {[%clk 0:00:58]}  g6 {[%clk 0:01:23]} 31. Rf3 {[%clk 0:00:57]}  R8c7 {[%clk 0:01:22]} 32. Bb6 {[%clk 0:00:54]}  Rxc3 {[%clk 0:01:13]} 33. Bxc7+ {[%clk 0:00:40]}  Rxc7 {[%clk 0:01:14]} 34. Qg8+ {[%clk 0:00:39]}  Qc8 {[%clk 0:01:12]} 35. Qg7 {[%clk 0:00:38]}  Qd7 {[%clk 0:01:06]} 36. Qf8+ {[%clk 0:00:37]}  Kb7 {[%clk 0:01:05]} 37. g3 {[%clk 0:00:35]}  d4 {[%clk 0:01:04]} 38. Qd6 {[%clk 0:00:33]}  Qxd6 {[%clk 0:01:01]} 39. exd6 {[%clk 0:00:33]}  Rd7 {[%clk 0:01:02]} 40. Rf4 {[%clk 0:00:31]}  e5 {[%clk 0:01:00]} 41. Rf6 {[%clk 0:00:30]}  Kc6 {[%clk 0:01:00]} 42. Kf1 {[%clk 0:00:30]}  Kd5 {[%clk 0:00:59]} 43. Ke2 {[%clk 0:00:29]}  e4 {[%clk 0:00:58]} 44. Kd2 {[%clk 0:00:28]}  Ke5 {[%clk 0:00:58]} 45. Rf4 {[%clk 0:00:26]}  g5 {[%clk 0:00:56]} 0-1


[Site "https://www.chess.com"]

[Event "Titled Tuesday Blitz April 18 Early 2023"]
[White "Kollars, Dmitrij"]
[Black "Devaev, Alexander"]
[WhiteFideId "12909572"]
[BlackFideId "4169395"]
[WhiteElo "2584"]
[BlackElo "2204"]
[Result "1/2-1/2"]
[Round "03"]
[TimeControl "180+2"]
[Date "2023.04.18"]
[WhiteClock "0:00:33"]
[BlackClock "0:00:10"]

1. c4 {[%clk 0:03:00]}  c5 {[%clk 0:02:59]} 2. Nc3 {[%clk 0:03:00]}  e6 {[%clk 0:03:00]} 3. Nf3 {[%clk 0:02:58]}  Nf6 {[%clk 0:03:00]} 4. d4 {[%clk 0:02:58]}  cxd4 {[%clk 0:03:00]} 5. Nxd4 {[%clk 0:02:59]}  a6 {[%clk 0:03:01]} 6. e4 {[%clk 0:02:59]}  d6 {[%clk 0:03:01]} 7. f4 {[%clk 0:02:55]}  Be7 {[%clk 0:03:00]} 8. Bd3 {[%clk 0:02:55]}  O-O {[%clk 0:03:00]} 9. O-O {[%clk 0:02:51]}  Nc6 {[%clk 0:02:59]} 10. Nc2 {[%clk 0:02:48]}  Qc7 {[%clk 0:02:58]} 11. g4 {[%clk 0:02:42]}  Nd7 {[%clk 0:02:40]} 12. g5 {[%clk 0:02:41]}  Nc5 {[%clk 0:02:40]} 13. f5 {[%clk 0:02:36]}  Ne5 {[%clk 0:02:28]} 14. Be2 {[%clk 0:02:35]}  Qd8 {[%clk 0:02:11]} 15. h4 {[%clk 0:02:31]}  Kh8 {[%clk 0:02:10]} 16. b4 {[%clk 0:02:25]}  Ncd7 {[%clk 0:02:05]} 17. Be3 {[%clk 0:02:25]}  Nb6 {[%clk 0:02:03]} 18. Qd4 {[%clk 0:02:18]}  Nbd7 {[%clk 0:01:55]} 19. Rad1 {[%clk 0:02:19]}  b6 {[%clk 0:01:43]} 20. Na4 {[%clk 0:02:00]}  Rb8 {[%clk 0:01:28]} 21. b5 {[%clk 0:01:59]}  a5 {[%clk 0:00:57]} 22. Rf2 {[%clk 0:01:58]}  Bb7 {[%clk 0:00:57]} 23. Rdf1 {[%clk 0:01:49]}  Ba8 {[%clk 0:00:47]} 24. Kh2 {[%clk 0:01:40]}  Rc8 {[%clk 0:00:41]} 25. f6 {[%clk 0:01:38]}  gxf6 {[%clk 0:00:41]} 26. gxf6 {[%clk 0:01:39]}  Nxf6 {[%clk 0:00:41]} 27. Nxb6 {[%clk 0:01:36]}  Rb8 {[%clk 0:00:33]} 28. Nxa8 {[%clk 0:01:36]}  Rxa8 {[%clk 0:00:33]} 29. c5 {[%clk 0:01:31]}  Rg8 {[%clk 0:00:17]} 30. Kh3 {[%clk 0:01:26]}  Rg7 {[%clk 0:00:14]} 31. cxd6 {[%clk 0:01:25]}  Bxd6 {[%clk 0:00:13]} 32. Rxf6 {[%clk 0:01:24]}  Rc8 {[%clk 0:00:14]} 33. Bh6 {[%clk 0:01:07]}  Qg8 {[%clk 0:00:09]} 34. Bxg7+ {[%clk 0:01:02]}  Qxg7 {[%clk 0:00:09]} 35. Qxd6 {[%clk 0:01:01]}  Rc3+ {[%clk 0:00:10]} 36. R6f3 {[%clk 0:00:49]}  Qg4+ {[%clk 0:00:10]} 37. Kh2 {[%clk 0:00:48]}  Qxh4+ {[%clk 0:00:07]} 38. Kg2 {[%clk 0:00:31]}  Qg4+ {[%clk 0:00:07]} 39. Kf2 {[%clk 0:00:31]}  Qh4+ {[%clk 0:00:08]} 40. Kg1 {[%clk 0:00:31]}  Qg4+ {[%clk 0:00:08]} 41. Kh1 {[%clk 0:00:31]}  Qh4+ {[%clk 0:00:09]} 42. Kg2 {[%clk 0:00:32]}  Qg4+ {[%clk 0:00:10]} 43. Kh2 {[%clk 0:00:33]}  Qh4+ {[%clk 0:00:10]} 44. Kg2 {[%clk 0:00:33]} 1/2-1/2


[Site "https://www.chess.com"]

[Event "Titled Tuesday Blitz April 18 Early 2023"]
[White "Womacka, Mathias"]
[Black "Grigoriants, Sergey"]
[WhiteFideId "4611390"]
[BlackFideId "4130804"]
[WhiteElo "2377"]
[BlackElo "2502"]
[Result "1-0"]
[Round "03"]
[TimeControl "180+2"]
[Date "2023.04.18"]
[WhiteClock "0:01:38"]
[BlackClock "0:00:12"]

1. e4 {[%clk 0:03:00]}  c5 {[%clk 0:02:52]} 2. Nf3 {[%clk 0:03:00]}  Nc6 {[%clk 0:02:52]} 3. d4 {[%clk 0:03:00]}  cxd4 {[%clk 0:02:52]} 4. Nxd4 {[%clk 0:03:01]}  Nf6 {[%clk 0:02:51]} 5. Nc3 {[%clk 0:03:02]}  e6 {[%clk 0:02:51]} 6. Ndb5 {[%clk 0:03:00]}  d6 {[%clk 0:02:49]} 7. Bf4 {[%clk 0:02:59]}  e5 {[%clk 0:02:49]} 8. Bg5 {[%clk 0:02:59]}  a6 {[%clk 0:02:48]} 9. Na3 {[%clk 0:03:00]}  b5 {[%clk 0:02:48]} 10. Nd5 {[%clk 0:03:00]}  Be7 {[%clk 0:02:48]} 11. Bxf6 {[%clk 0:03:00]}  Bxf6 {[%clk 0:02:49]} 12. c3 {[%clk 0:03:00]}  Bg5 {[%clk 0:02:49]} 13. Nc2 {[%clk 0:03:00]}  Ne7 {[%clk 0:02:48]} 14. h4 {[%clk 0:02:49]}  Bh6 {[%clk 0:02:40]} 15. Ncb4 {[%clk 0:02:44]}  O-O {[%clk 0:02:36]} 16. a4 {[%clk 0:02:44]}  bxa4 {[%clk 0:02:30]} 17. Qxa4 {[%clk 0:02:43]}  Bb7 {[%clk 0:02:03]} 18. Qa5 {[%clk 0:02:24]}  Nxd5 {[%clk 0:01:53]} 19. Nxd5 {[%clk 0:02:20]}  Bxd5 {[%clk 0:01:43]} 20. Qxd5 {[%clk 0:02:21]}  Qb6 {[%clk 0:01:42]} 21. b3 {[%clk 0:02:17]}  a5 {[%clk 0:00:30]} 22. Bc4 {[%clk 0:02:16]}  Ra7 {[%clk 0:00:29]} 23. O-O {[%clk 0:02:14]}  Rd8 {[%clk 0:00:13]} 24. Ra2 {[%clk 0:02:12]}  g6 {[%clk 0:00:14]} 25. Rfa1 {[%clk 0:02:09]}  Rda8 {[%clk 0:00:12]} 26. g3 {[%clk 0:01:48]}  Bf8 {[%clk 0:00:12]} 27. Rxa5 {[%clk 0:01:38]} 1-0


[Site "https://www.chess.com"]

[Event "Titled Tuesday Blitz April 18 Early 2023"]
[White "Galchenko, Matvey"]
[Black "Baches Garcia, Guillermo"]
[WhiteFideId "24175480"]
[BlackFideId "2209764"]
[WhiteElo "2423"]
[BlackElo "2480"]
[Result "1-0"]
[Round "03"]
[TimeControl "180+2"]
[Date "2023.04.18"]
[WhiteClock "0:00:06"]
[BlackClock "0:00:03"]

1. f4 {[%clk 0:02:58]}  d5 {[%clk 0:02:56]} 2. Nf3 {[%clk 0:02:57]}  g6 {[%clk 0:02:56]} 3. g3 {[%clk 0:02:57]}  Bg7 {[%clk 0:02:56]} 4. Bg2 {[%clk 0:02:58]}  Nh6 {[%clk 0:02:54]} 5. O-O {[%clk 0:02:58]}  O-O {[%clk 0:02:54]} 6. d3 {[%clk 0:02:59]}  d4 {[%clk 0:02:54]} 7. c3 {[%clk 0:02:59]}  Nf5 {[%clk 0:02:53]} 8. e4 {[%clk 0:02:59]}  dxe3 {[%clk 0:02:46]} 9. Qe2 {[%clk 0:02:58]}  Nd7 {[%clk 0:02:19]} 10. d4 {[%clk 0:02:57]}  c5 {[%clk 0:02:14]} 11. dxc5 {[%clk 0:02:16]}  Nxc5 {[%clk 0:02:07]} 12. Bxe3 {[%clk 0:02:16]}  Qd3 {[%clk 0:02:01]} 13. Re1 {[%clk 0:02:06]}  Qxe2 {[%clk 0:01:47]} 14. Rxe2 {[%clk 0:02:07]}  Nxe3 {[%clk 0:01:42]} 15. Rxe3 {[%clk 0:02:08]}  Rd8 {[%clk 0:01:36]} 16. Na3 {[%clk 0:01:32]}  Be6 {[%clk 0:01:15]} 17. Nb5 {[%clk 0:01:30]}  Rd7 {[%clk 0:01:00]} 18. Ne5 {[%clk 0:01:22]}  Bxe5 {[%clk 0:00:56]} 19. Rxe5 {[%clk 0:01:23]}  Nd3 {[%clk 0:00:48]} 20. Rxe6 {[%clk 0:00:51]}  fxe6 {[%clk 0:00:47]} 21. Bh3 {[%clk 0:00:52]}  Kf7 {[%clk 0:00:36]} 22. Nd4 {[%clk 0:00:42]}  Rd6 {[%clk 0:00:34]} 23. Rb1 {[%clk 0:00:26]}  Nc5 {[%clk 0:00:31]} 24. Re1 {[%clk 0:00:24]}  a5 {[%clk 0:00:29]} 25. Re2 {[%clk 0:00:21]}  Raa6 {[%clk 0:00:26]} 26. Nf3 {[%clk 0:00:20]}  Kf6 {[%clk 0:00:22]} 27. Ne5 {[%clk 0:00:18]}  Nd3 {[%clk 0:00:20]} 28. Nc4 {[%clk 0:00:12]}  Rdc6 {[%clk 0:00:17]} 29. Ne3 {[%clk 0:00:12]}  a4 {[%clk 0:00:15]} 30. Ng4+ {[%clk 0:00:11]}  Kf7 {[%clk 0:00:14]} 31. Bf1 {[%clk 0:00:11]}  a3 {[%clk 0:00:13]} 32. b4 {[%clk 0:00:09]}  Rxc3 {[%clk 0:00:12]} 33. Re3 {[%clk 0:00:09]}  Rc2 {[%clk 0:00:04]} 34. Bxd3 {[%clk 0:00:09]}  Rxa2 {[%clk 0:00:05]} 35. Ne5+ {[%clk 0:00:06]}  Kf6 {[%clk 0:00:05]} 36. Bxa6 {[%clk 0:00:07]}  bxa6 {[%clk 0:00:04]} 37. Ng4+ {[%clk 0:00:05]}  Kf5 {[%clk 0:00:04]} 38. Nf2 {[%clk 0:00:06]}  Ra1+ {[%clk 0:00:04]} 39. Kg2 {[%clk 0:00:06]}  a2 {[%clk 0:00:04]} 40. Ra3 {[%clk 0:00:07]}  Rb1 {[%clk 0:00:02]} 41. Rxa2 {[%clk 0:00:05]}  Rxb4 {[%clk 0:00:03]} 42. Rxa6 {[%clk 0:00:06]}  Rb6 {[%clk 0:00:03]} 43. Rxb6 {[%clk 0:00:06]} 1-0


[Site "https://www.chess.com"]

[Event "Titled Tuesday Blitz April 18 Early 2023"]
[White "Djordjevic, Vuk"]
[Black "Rom, Jasper"]
[WhiteFideId "902098"]
[BlackFideId "2023733"]
[WhiteElo "2452"]
[BlackElo "2233"]
[Result "1-0"]
[Round "03"]
[TimeControl "180+2"]
[Date "2023.04.18"]
[WhiteClock "0:00:38"]
[BlackClock "0:00:01"]

1. d4 {[%clk 0:03:00]}  d5 {[%clk 0:02:59]} 2. Bf4 {[%clk 0:03:00]}  Nf6 {[%clk 0:02:58]} 3. e3 {[%clk 0:02:59]}  e6 {[%clk 0:02:51]} 4. Nd2 {[%clk 0:02:57]}  c5 {[%clk 0:02:51]} 5. c3 {[%clk 0:02:57]}  Qb6 {[%clk 0:02:51]} 6. Qb3 {[%clk 0:02:53]}  c4 {[%clk 0:02:40]} 7. Qxb6 {[%clk 0:02:53]}  axb6 {[%clk 0:02:40]} 8. a3 {[%clk 0:02:53]}  b5 {[%clk 0:02:40]} 9. O-O-O {[%clk 0:02:41]}  b6 {[%clk 0:02:32]} 10. h3 {[%clk 0:02:33]}  Bb7 {[%clk 0:02:32]} 11. g4 {[%clk 0:02:33]}  Ne4 {[%clk 0:02:17]} 12. Nxe4 {[%clk 0:02:24]}  dxe4 {[%clk 0:02:16]} 13. Bg2 {[%clk 0:02:24]}  Bd5 {[%clk 0:01:58]} 14. Ne2 {[%clk 0:02:18]}  f5 {[%clk 0:01:58]} 15. gxf5 {[%clk 0:02:18]}  exf5 {[%clk 0:01:57]} 16. Ng3 {[%clk 0:02:17]}  g6 {[%clk 0:01:57]} 17. h4 {[%clk 0:02:17]}  Rg8 {[%clk 0:01:56]} 18. h5 {[%clk 0:02:09]}  Nc6 {[%clk 0:01:47]} 19. hxg6 {[%clk 0:02:04]}  hxg6 {[%clk 0:01:48]} 20. Rh7 {[%clk 0:02:00]}  Ra7 {[%clk 0:01:45]} 21. Rdh1 {[%clk 0:01:58]}  Rgg7 {[%clk 0:01:18]} 22. Rh8 {[%clk 0:01:51]}  Rg8 {[%clk 0:01:16]} 23. Rxg8 {[%clk 0:01:32]}  Bxg8 {[%clk 0:01:15]} 24. Rh8 {[%clk 0:01:33]}  Kf7 {[%clk 0:01:06]} 25. f3 {[%clk 0:01:16]}  Kg7 {[%clk 0:01:01]} 26. Rh1 {[%clk 0:01:11]}  exf3 {[%clk 0:00:41]} 27. Bxf3 {[%clk 0:01:11]}  Ne7 {[%clk 0:00:26]} 28. Be5+ {[%clk 0:01:11]}  Kf7 {[%clk 0:00:26]} 29. e4 {[%clk 0:01:09]}  Bg7 {[%clk 0:00:12]} 30. Bf4 {[%clk 0:01:06]}  fxe4 {[%clk 0:00:06]} 31. Nxe4 {[%clk 0:01:04]}  Nf5 {[%clk 0:00:06]} 32. Ng5+ {[%clk 0:00:56]}  Kf8 {[%clk 0:00:06]} 33. Bc6 {[%clk 0:00:48]}  b4 {[%clk 0:00:07]} 34. axb4 {[%clk 0:00:48]}  Ra1+ {[%clk 0:00:05]} 35. Kc2 {[%clk 0:00:49]}  Rxh1 {[%clk 0:00:04]} 36. Bxh1 {[%clk 0:00:50]}  Bf6 {[%clk 0:00:01]} 37. Ne4 {[%clk 0:00:47]}  Be7 {[%clk 0:00:01]} 38. Nd2 {[%clk 0:00:38]} 1-0


[Site "https://www.chess.com"]

[Event "Titled Tuesday Blitz April 18 Early 2023"]
[White "Bilych, Olexiy"]
[Black "Kielinkei"]
[WhiteFideId "14156504"]
[WhiteElo "2320"]
[BlackElo "2472"]
[Result "1-0"]
[Round "03"]
[TimeControl "180+2"]
[Date "2023.04.18"]
[WhiteClock "0:00:16"]
[BlackClock "0:00:02"]

1. d4 {[%clk 0:03:00]}  d5 {[%clk 0:03:00]} 2. c4 {[%clk 0:03:01]}  e6 {[%clk 0:03:00]} 3. Nf3 {[%clk 0:03:02]}  c6 {[%clk 0:02:57]} 4. Nc3 {[%clk 0:03:02]}  dxc4 {[%clk 0:02:55]} 5. e3 {[%clk 0:03:02]}  b5 {[%clk 0:02:54]} 6. a4 {[%clk 0:03:02]}  Bb4 {[%clk 0:02:54]} 7. Bd2 {[%clk 0:03:00]}  a5 {[%clk 0:02:51]} 8. axb5 {[%clk 0:03:00]}  Bxc3 {[%clk 0:02:52]} 9. Bxc3 {[%clk 0:03:01]}  cxb5 {[%clk 0:02:52]} 10. b3 {[%clk 0:03:02]}  Bb7 {[%clk 0:02:47]} 11. bxc4 {[%clk 0:03:02]}  b4 {[%clk 0:02:47]} 12. Bb2 {[%clk 0:03:03]}  Nd7 {[%clk 0:02:44]} 13. Bd3 {[%clk 0:03:02]}  Ngf6 {[%clk 0:02:42]} 14. O-O {[%clk 0:03:00]}  Ne4 {[%clk 0:02:34]} 15. Qc2 {[%clk 0:02:49]}  Ndf6 {[%clk 0:02:18]} 16. Ne5 {[%clk 0:02:45]}  O-O {[%clk 0:02:15]} 17. f3 {[%clk 0:02:44]}  Nd6 {[%clk 0:02:13]} 18. c5 {[%clk 0:02:43]}  Rc8 {[%clk 0:02:09]} 19. Qa4 {[%clk 0:02:40]}  Nf5 {[%clk 0:01:54]} 20. Rfe1 {[%clk 0:02:20]}  Ra8 {[%clk 0:01:47]} 21. Rad1 {[%clk 0:02:19]}  Qc7 {[%clk 0:01:40]} 22. e4 {[%clk 0:02:10]}  Ne7 {[%clk 0:01:39]} 23. Bb5 {[%clk 0:02:08]}  Rfd8 {[%clk 0:01:36]} 24. Nc4 {[%clk 0:02:03]}  Bc6 {[%clk 0:01:32]} 25. Nd6 {[%clk 0:01:57]}  Bxb5 {[%clk 0:01:30]} 26. Qxb5 {[%clk 0:01:55]}  Rdb8 {[%clk 0:01:29]} 27. Qa4 {[%clk 0:01:53]}  Ne8 {[%clk 0:01:24]} 28. Nc4 {[%clk 0:01:37]}  Ra7 {[%clk 0:01:08]} 29. Ra1 {[%clk 0:01:32]}  Nf6 {[%clk 0:00:57]} 30. g3 {[%clk 0:01:20]}  Nc6 {[%clk 0:00:46]} 31. Rad1 {[%clk 0:01:16]}  Rd8 {[%clk 0:00:45]} 32. Nd6 {[%clk 0:01:12]}  Raa8 {[%clk 0:00:36]} 33. Kg2 {[%clk 0:00:50]}  Ne7 {[%clk 0:00:36]} 34. Nc4 {[%clk 0:00:48]}  Nc6 {[%clk 0:00:35]} 35. Nb6 {[%clk 0:00:45]}  Rab8 {[%clk 0:00:32]} 36. d5 {[%clk 0:00:43]}  exd5 {[%clk 0:00:24]} 37. exd5 {[%clk 0:00:43]}  Na7 {[%clk 0:00:24]} 38. Qxa5 {[%clk 0:00:30]}  Nxd5 {[%clk 0:00:19]} 39. Be5 {[%clk 0:00:25]}  Qb7 {[%clk 0:00:03]} 40. Bxb8 {[%clk 0:00:20]}  Nc6 {[%clk 0:00:03]} 41. Nxd5 {[%clk 0:00:16]}  Nxa5 {[%clk 0:00:02]} 42. Ne7+ {[%clk 0:00:16]} 1-0


[Site "https://www.chess.com"]

[Event "Titled Tuesday Blitz April 18 Early 2023"]
[White "polandchessplayer"]
[Black "Kovalevsky, Stanislav"]
[BlackFideId "13508598"]
[WhiteElo "2673"]
[BlackElo "2174"]
[Result "0-1"]
[Round "03"]
[TimeControl "180+2"]
[Date "2023.04.18"]
[WhiteClock "0:00:33"]
[BlackClock "0:00:18"]

1. c4 {[%clk 0:03:00]}  e6 {[%clk 0:03:00]} 2. Nf3 {[%clk 0:02:58]}  d5 {[%clk 0:03:00]} 3. g3 {[%clk 0:02:58]}  Nf6 {[%clk 0:03:01]} 4. Bg2 {[%clk 0:02:57]}  Nbd7 {[%clk 0:03:01]} 5. d4 {[%clk 0:02:57]}  c6 {[%clk 0:03:01]} 6. O-O {[%clk 0:02:57]}  a6 {[%clk 0:02:59]} 7. Nbd2 {[%clk 0:02:58]}  Bd6 {[%clk 0:02:58]} 8. b3 {[%clk 0:02:58]}  O-O {[%clk 0:02:58]} 9. Bb2 {[%clk 0:02:57]}  Ne4 {[%clk 0:02:58]} 10. Ne1 {[%clk 0:02:52]}  f5 {[%clk 0:02:57]} 11. Nd3 {[%clk 0:02:51]}  Qg5 {[%clk 0:02:49]} 12. e3 {[%clk 0:02:43]}  Ndf6 {[%clk 0:02:39]} 13. Qe2 {[%clk 0:02:33]}  Ng4 {[%clk 0:02:17]} 14. Rae1 {[%clk 0:02:26]}  a5 {[%clk 0:01:47]} 15. Nf4 {[%clk 0:01:36]}  Qh6 {[%clk 0:01:36]} 16. h3 {[%clk 0:01:33]}  Ngf6 {[%clk 0:01:32]} 17. c5 {[%clk 0:01:31]}  Bc7 {[%clk 0:01:24]} 18. Nxe4 {[%clk 0:01:21]}  Nxe4 {[%clk 0:01:20]} 19. Nd3 {[%clk 0:01:14]}  a4 {[%clk 0:01:10]} 20. b4 {[%clk 0:01:14]}  g5 {[%clk 0:01:03]} 21. a3 {[%clk 0:01:13]}  Bd7 {[%clk 0:00:58]} 22. Ne5 {[%clk 0:01:13]}  Be8 {[%clk 0:00:59]} 23. Bxe4 {[%clk 0:01:08]}  fxe4 {[%clk 0:00:57]} 24. Kg2 {[%clk 0:01:08]}  Bxe5 {[%clk 0:00:50]} 25. dxe5 {[%clk 0:01:08]}  Bh5 {[%clk 0:00:51]} 26. g4 {[%clk 0:01:08]}  Bg6 {[%clk 0:00:47]} 27. Rh1 {[%clk 0:01:03]}  Rf3 {[%clk 0:00:45]} 28. Ref1 {[%clk 0:01:04]}  Raf8 {[%clk 0:00:44]} 29. Bd4 {[%clk 0:01:04]}  Qh4 {[%clk 0:00:40]} 30. Rh2 {[%clk 0:00:41]}  h5 {[%clk 0:00:38]} 31. Kh1 {[%clk 0:00:38]}  Rxh3 {[%clk 0:00:36]} 32. f4 {[%clk 0:00:33]}  exf3 {[%clk 0:00:30]} 33. Qf2 {[%clk 0:00:34]}  Rxh2+ {[%clk 0:00:19]} 34. Qxh2 {[%clk 0:00:34]}  Qxg4 {[%clk 0:00:20]} 35. Rg1 {[%clk 0:00:33]}  f2 {[%clk 0:00:19]} 36. Rf1 {[%clk 0:00:33]}  Be4+ {[%clk 0:00:18]} 0-1


[Site "https://www.chess.com"]

[Event "Titled Tuesday Blitz April 18 Early 2023"]
[White "Golubev, Mikhail"]
[Black "Skvortsov, Andrei"]
[WhiteFideId "14100983"]
[BlackFideId "24108600"]
[WhiteElo "2374"]
[BlackElo "2259"]
[Result "0-1"]
[Round "03"]
[TimeControl "180+2"]
[Date "2023.04.18"]
[WhiteClock "0:00:01"]
[BlackClock "0:00:56"]

1. e4 {[%clk 0:03:00]}  e5 {[%clk 0:02:59]} 2. Nf3 {[%clk 0:03:00]}  Nf6 {[%clk 0:02:55]} 3. Nc3 {[%clk 0:02:59]}  Nc6 {[%clk 0:02:53]} 4. d4 {[%clk 0:02:59]}  exd4 {[%clk 0:02:53]} 5. Nxd4 {[%clk 0:03:00]}  Bb4 {[%clk 0:02:53]} 6. Nxc6 {[%clk 0:03:00]}  bxc6 {[%clk 0:02:54]} 7. Bd3 {[%clk 0:03:00]}  d5 {[%clk 0:02:54]} 8. Bd2 {[%clk 0:02:58]}  O-O {[%clk 0:02:52]} 9. O-O {[%clk 0:02:57]}  Bxc3 {[%clk 0:02:44]} 10. Bxc3 {[%clk 0:02:57]}  dxe4 {[%clk 0:02:43]} 11. Bc4 {[%clk 0:02:42]}  Nd5 {[%clk 0:02:41]} 12. Bxd5 {[%clk 0:02:39]}  cxd5 {[%clk 0:02:29]} 13. Qd4 {[%clk 0:02:26]}  f6 {[%clk 0:02:21]} 14. Rfd1 {[%clk 0:02:04]}  Be6 {[%clk 0:02:16]} 15. a4 {[%clk 0:01:41]}  Re8 {[%clk 0:02:08]} 16. a5 {[%clk 0:01:39]}  a6 {[%clk 0:02:07]} 17. Bb4 {[%clk 0:01:28]}  Qb8 {[%clk 0:01:56]} 18. Ra3 {[%clk 0:01:18]}  c6 {[%clk 0:01:49]} 19. Rg3 {[%clk 0:01:14]}  Bf7 {[%clk 0:01:49]} 20. Bc3 {[%clk 0:00:49]}  Qf4 {[%clk 0:01:35]} 21. Re1 {[%clk 0:00:30]}  Bg6 {[%clk 0:01:29]} 22. Qc5 {[%clk 0:00:23]}  Re6 {[%clk 0:01:20]} 23. Ree3 {[%clk 0:00:17]}  Qb8 {[%clk 0:01:14]} 24. b3 {[%clk 0:00:14]}  Qb5 {[%clk 0:01:11]} 25. Qxb5 {[%clk 0:00:09]}  axb5 {[%clk 0:01:09]} 26. Bb4 {[%clk 0:00:05]}  f5 {[%clk 0:01:06]} 27. Rc3 {[%clk 0:00:04]}  d4 {[%clk 0:01:04]} 28. Rc5 {[%clk 0:00:03]}  f4 {[%clk 0:01:00]} 29. Rgg5 {[%clk 0:00:03]}  e3 {[%clk 0:00:57]} 30. fxe3 {[%clk 0:00:01]}  fxe3 {[%clk 0:00:56]} 0-1


[Site "https://www.chess.com"]